bitfinex-derivatives/quotes_SOLF0:USTF0_20240902
["timestamp","ask_amount","ask_price","bid_price","bid_amount"]
[1725256357662,24.66361043,129.51,129.47,3.91496588]
[1725256358165,24.66361043,129.51,129.48,3.8617]
[1725256358365,20.79,129.53,129.47,0.05296588]
[1725256358764,20.79,129.55,129.47,20.84296588]
[1725256359067,20.79,129.57,129.5,0.05182035]
[1725256359360,20.79,129.57,129.52,0.0547084]
[1725256359760,28.45422288,129.57,129.52,3.9152084]
[1725256359961,24.59512288,129.57,129.52,0.0547084]
[1725256360567,20.79,129.55,129.52,0.0547084]
[1725256361769,24.59512288,129.57,129.52,0.0547084]
[1725256361961,20.79,129.57,129.52,0.0547084]
[1725256362464,3.80085877,129.57,129.53,3.86]
[1725256362668,3.8588,129.58,129.53,3.86]
[1725256362856,20.79,129.59,129.52,0.0547084]
[1725256363064,3.77421724,129.58,129.57,3.8591]
[1725256363262,3.77421724,129.58,129.56,0.05272336]
[1725256363456,3.77421724,129.58,129.56,0.04987484]
[1725256363764,71.31720404,129.66,129.56,0.04987484]
[1725256364061,233.06182275,129.74,129.6,0.04982301]
[1725256364062,22.00825919,129.65,129.6,0.04982301]
[1725256364265,1.21825919,129.64,129.61,0.0586232]
[1725256364764,3.857,129.64,129.61,0.0586232]
[1725256365168,24.57348386,129.65,129.61,0.0586232]
[1725256365368,28.43038386,129.65,129.61,0.0586232]
[1725256366572,25.86508217,129.64,129.61,0.0586232]
[1725256366769,24.6471,129.64,129.61,0.0586232]
[1725256368367,3.8573,129.63,129.61,0.0586232]
[1725256368971,24.6471,129.64,129.61,0.0586232]
[1725256370268,3.78348386,129.65,129.61,0.0586232]
[1725256370467,1.6156,129.67,129.61,0.0586232]
[1725256370675,5.55195038,129.67,129.61,0.0586232]
[1725256370973,5.4719,129.67,129.61,0.0586232]
[1725256371170,5.37918903,129.67,129.61,0.0586232]
[1725256372067,3.8564,129.66,129.61,3.9162232]
[1725256372468,3.76358903,129.67,129.61,0.0586232]
[1725256372670,3.86274253,129.7,129.63,20.79]
[1725256372872,3.143,129.73,129.65,0.05494419]
[1725256373073,20.79,129.74,129.68,0.05145718]
[1725256373267,20.79,129.75,129.7,0.05531932]
[1725256373575,24.59255597,129.75,129.71,0.04879997]
[1725256373763,24.6438,129.75,129.71,0.04879997]
[1725256374165,28.58474459,129.75,129.71,0.04879997]
[1725256374573,24.73094459,129.75,129.71,0.04879997]
[1725256374973,3.8541,129.74,129.71,0.04879997]
[1725256375173,24.73094459,129.75,129.71,0.04879997]
[1725256375372,3.94094459,129.75,129.71,0.04879997]
[1725256375681,3.8544,129.73,129.71,0.04879997]
[1725256376275,20.79,129.73,129.63,24.0189]
[1725256376474,24.66539713,129.75,129.65,20.79]
[1725256376779,20.79,129.75,129.65,20.79]
[1725256377178,3.8543,129.73,129.68,3.8556]
[1725256377479,0.04879997,129.72,129.69,0.0514467]
[1725256377677,24.645,129.71,129.69,0.0514467]
[1725256377880,20.79,129.71,129.69,0.0514467]
[1725256379179,20.79,129.71,129.63,3.2289]
[1725256379880,3.86382994,129.75,129.64,24.58356878]
[1725256380088,20.79,129.76,129.66,20.79]
[1725256380278,0.05745816,129.72,129.7,0.05354029]
[1725256380875,1.6796,129.78,129.7,0.05354029]
[1725256380876,233.05041534,129.9,129.71,20.79]
[1725256381080,1.538,129.85,129.76,20.79]
[1725256381282,1.2163387,129.84,129.78,20.79]
[1725256381484,20.79,129.87,129.78,20.79]
[1725256381678,20.79,129.94,129.84,20.79]
[1725256381978,23.8519,129.99,129.88,0.04930464]
[1725256381979,0.04128778,129.9,129.88,0.04930464]
[1725256382183,0.04128778,129.9,129.88,0.05378659]
[1725256387286,3.89058778,129.9,129.88,0.05378659]
[1725256387585,0.04128778,129.9,129.82,3.8516]
[1725256387886,25.89,129.91,129.82,3.8516]
[1725256388087,1.6691,129.92,129.82,3.8516]
[1725256388088,3.8498,129.89,129.82,3.8516]
[1725256388390,0.0497224,129.87,129.84,0.05447082]
[1725256388794,3.90528074,129.86,129.84,0.05447082]
[1725256388987,0.0497224,129.87,129.84,0.05447082]
[1725256389186,0.0497224,129.87,129.86,3.8504]
[1725256390388,3.87325572,129.93,129.86,25.89]
[1725256390582,27.5133,129.98,129.86,25.89]
[1725256390784,1.21457242,129.97,129.86,25.89]
[1725256390988,5.01211831,129.97,129.86,25.89]
[1725256391192,1.21457242,129.96,129.89,25.89]
[1725256391385,0.04535198,129.94,129.91,0.04910291]
[1725256391697,0.04535198,129.94,129.92,3.8484]
[1725256391899,0.04535198,129.94,129.91,0.053818]
[1725256392295,1.5759,130.04,129.93,25.89]
[1725256392597,1.21396027,130.03,129.95,25.89]
[1725256392798,29.75092051,130.06,129.98,3.8467]
[1725256392997,1.2137785,130.05,129.95,25.89]
[1725256393294,1.2137785,130.05,129.99,0.05415641]
[1725256393688,25.89,130.04,129.99,0.05415641]
[1725256393896,1.2137785,130.03,129.99,0.05415641]
[1725256394402,27.4422,130.02,129.99,0.05415641]
[1725256395395,25.89,129.98,129.89,1.6256]
[1725256395594,29.79359875,129.98,129.89,1.6256]
[1725256395988,3.90359875,129.98,129.9,25.89]
[1725256396195,0.05415641,129.95,129.93,0.05803234]
[1725256396395,29.75092051,130.06,129.94,25.89]
[1725256396596,25.89,130.04,129.94,25.89]
[1725256396899,1.21396627,130.03,129.94,25.89]
[1725256397300,3.8458,130.02,129.95,3.8477]
[1725256397492,29.65047449,130.04,129.97,0.04917913]
[1725256397690,27.10389025,130.03,129.97,0.04917913]
[1725256397902,3.8461,130.01,129.97,0.04917913]
[1725256398100,3.92099523,130.01,129.97,0.04917913]
[1725256398305,25.89,130.03,129.97,0.04917913]
[1725256398504,3.1534,130.05,129.97,0.04917913]
[1725256398505,29.0434,130.05,129.97,0.04917913]
[1725256398704,1.21380056,130.04,130.0,0.04852563]
[1725256400208,3.846,130.01,130.0,0.04852563]
[1725256400603,25.89,130.03,129.92,25.89]
[1725256400809,3.8468,129.99,129.92,25.89]
[1725256401313,25.89,130.03,129.92,25.89]
[1725256401314,1.5765,130.04,129.92,25.89]
[1725256401609,1.5765,130.04,129.97,0.05009998]
[1725256401610,0.04852563,129.99,129.97,0.05009998]
[1725256404110,3.8469,129.98,129.97,0.05009998]
[1725256404318,7.7608868,129.98,129.97,0.05009998]
[1725256404616,25.89,130.01,129.9,1.5566]
[1725256404800,1.21418734,130.0,129.9,1.5566]
[1725256405204,1.21418734,130.0,129.9,5.4058]
[1725256405612,0.05150761,129.96,129.94,0.05283924]
[1725256405803,3.8478,129.95,129.94,0.05283924]
[1725256406314,7.80222162,129.96,129.94,0.05283924]
[1725256406815,3.8478,129.95,129.94,0.05283924]
[1725256408013,3.8487,129.92,129.83,25.89]
[1725256408211,25.89,129.95,129.84,1.6152]
[1725256408721,3.8489,129.92,129.84,1.6152]
[1725256408910,0.04865779,129.89,129.87,0.05068521]
[1725256409111,0.05880085,129.89,129.87,3.90689407]
[1725256409712,0.05880085,129.89,129.87,0.05699407]
[1725256411004,3.82977704,129.88,129.87,0.05699407]
[1725256412317,0.05880085,129.89,129.87,0.05699407]
[1725256412525,7.69621511,129.89,129.87,0.05699407]
[1725256413420,7.69641511,129.89,129.87,0.05699407]
[1725256413615,3.84661511,129.89,129.87,0.05699407]
[1725256414020,7.69641511,129.89,129.87,0.05699407]
[1725256414214,3.84661511,129.89,129.87,0.05699407]
[1725256415028,3.8498,129.88,129.87,0.05699407]
[1725256416837,3.8509,129.85,129.81,3.2959]
[1725256417031,3.78781426,129.89,129.81,3.2959]
[1725256417237,1.6521,129.89,129.81,3.2959]
[1725256417536,3.851,129.85,129.81,3.2959]
[1725256417939,0.0572946,129.84,129.82,0.05482547]
[1725256419333,3.9082946,129.84,129.82,0.05482547]
[1725256419626,0.0572946,129.84,129.82,0.05482547]
[1725256419827,3.8513,129.83,129.82,0.05482547]
[1725256420032,3.8513,129.83,129.75,1.536]
[1725256420033,25.89,129.83,129.75,1.536]
[1725256420230,25.89,129.8,129.71,3.2204]
[1725256420549,27.525,129.82,129.71,29.1104]
[1725256420836,27.525,129.82,129.72,1.536]
[1725256421138,0.05446931,129.78,129.76,0.05401099]
[1725256422338,3.8531,129.77,129.76,0.05401099]
[1725256422739,25.89,129.8,129.69,25.89]
[1725256422934,3.854,129.75,129.68,3.8557]
[1725256423135,25.89,129.78,129.67,25.89]
[1725256423445,3.8542,129.74,129.67,25.89]
[1725256423639,3.91304347,129.73,129.67,25.89]
[1725256423839,25.89,129.78,129.67,25.89]
[1725256423840,0.0494003,129.72,129.69,0.05659201]
[1725256424037,3.88991674,129.75,129.71,25.89]
[1725256424238,31.46306332,129.82,129.72,3.2806]
[1725256424435,3.8525,129.79,129.73,3.8541]
[1725256425040,3.8537,129.75,129.72,3.2806]
[1725256425246,3.78160653,129.74,129.72,0.05435604]
[1725256425441,0.05367341,129.74,129.72,0.05435604]
[1725256425743,3.99408352,129.74,129.72,0.05435604]
[1725256425943,0.05367341,129.74,129.72,0.05435604]
[1725256426248,3.83547914,129.73,129.72,0.05435604]
[1725256426545,3.90767341,129.74,129.72,0.05435604]
[1725256427047,7.7766889,129.74,129.72,0.05435604]
[1725256427347,3.9226889,129.74,129.72,0.05435604]
[1725256428047,3.8543,129.73,129.72,0.05435604]
[1725256428441,3.8553,129.7,129.64,7.1554]
[1725256428644,29.75901549,129.74,129.64,3.2985]
[1725256429047,29.75901549,129.74,129.66,25.89]
[1725256429048,3.86901549,129.74,129.66,25.89]
[1725256429344,1.6839,129.78,129.66,25.89]
[1725256429650,0.05607574,129.73,129.71,0.04851399]
[1725256429951,0.05877578,129.73,129.71,0.04851399]
[1725256432645,3.91317578,129.73,129.71,0.04851399]
[1725256433052,25.94877578,129.73,129.71,0.04851399]
[1725256433349,3.8546,129.72,129.71,0.04851399]
[1725256434550,0.05877578,129.73,129.71,0.04851399]
[1725256438450,25.94877578,129.73,129.71,0.04851399]
[1725256439059,3.8546,129.72,129.71,0.04851399]
[1725256440052,0.05877578,129.73,129.72,3.8546]
[1725256440759,3.93014854,129.75,129.74,3.854]
[1725256440959,25.89,129.79,129.68,25.89]
[1725256441360,3.245,129.86,129.68,25.89]
[1725256441361,25.89,129.77,129.68,25.89]
[1725256441855,3.90801187,129.74,129.71,0.04908835]
[1725256442060,7.81142406,129.74,129.71,0.04908835]
[1725256442255,3.95732406,129.74,129.71,0.04908835]
[1725256442862,0.05391187,129.74,129.71,0.04908835]
[1725256444261,25.94391187,129.74,129.71,0.04908835]
[1725256444452,25.89,129.72,129.65,1.5235]
[1725256444651,25.89,129.7,129.65,1.5235]
[1725256444856,25.89,129.71,129.65,1.5235]
[1725256445452,0.05045275,129.69,129.67,0.05391306]
[1725256446162,25.94045275,129.69,129.5,3.79092519]
[1725256446362,25.89,129.66,129.56,25.89]
[1725256446558,3.8569,129.65,129.59,3.8582]
[1725256446868,3.92025296,129.64,129.59,3.8582]
[1725256447250,0.05759336,129.63,129.6,0.05761042]
[1725256448757,25.89,129.72,129.6,25.94761042]
[1725256448954,25.89,129.72,129.62,25.89]
[1725256449155,3.2009,129.74,129.63,3.1662]
[1725256449156,5.4238,129.73,129.63,3.1662]
[1725256449357,29.0909,129.74,129.63,3.1662]
[1725256449653,0.05389854,129.7,129.67,0.05544311]
[1725256451455,0.05389854,129.7,129.67,3.91144311]
[1725256451656,0.05389854,129.7,129.67,0.05544311]
[1725256451861,25.94389854,129.7,129.67,0.05544311]
[1725256452055,51.78,129.68,129.57,7.129]
[1725256452256,25.89,129.64,129.57,3.2702]
[1725256452464,3.83173966,129.68,129.57,3.2702]
[1725256452664,25.89,129.64,129.57,7.129]
[1725256452868,3.8574,129.63,129.57,7.129]
[1725256453064,29.83779457,129.64,129.59,0.05562059]
[1725256453065,0.05909365,129.61,129.59,0.05562059]
[1725256453362,0.05744686,129.61,129.59,0.05712114]
[1725256453773,3.81862822,129.61,129.59,0.05712114]
[1725256453971,0.05744686,129.61,129.59,0.05712114]
[1725256454368,3.85217233,129.61,129.59,0.05712114]
[1725256454560,0.05744686,129.61,129.59,0.05712114]
[1725256454766,25.89,129.6,129.52,3.2839]
[1725256454962,29.7482,129.6,129.52,3.2839]
[1725256455577,29.82532453,129.6,129.52,3.2839]
[1725256455766,25.94542988,129.57,129.55,0.0534144]
[1725256456178,0.05542988,129.57,129.55,0.0534144]
[1725256456372,3.89003665,129.57,129.55,0.0534144]
[1725256456578,29.78003665,129.57,129.55,0.0534144]
[1725256458080,3.89003665,129.57,129.55,0.0534144]
[1725256458874,0.05542988,129.57,129.55,0.0534144]
[1725256459174,0.05542988,129.57,129.56,3.8594]
[1725256461878,25.89,129.61,129.57,3.8588]
[1725256462079,25.89,129.63,129.56,1.5541]
[1725256462379,3.95501458,129.62,129.56,1.5541]
[1725256462575,25.89,129.63,129.56,1.5541]
[1725256462780,29.66285544,129.63,129.58,3.8587]
[1725256462971,25.89,129.58,129.51,1.6808]
[1725256463181,0.05829265,129.56,129.53,0.05020324]
[1725256464087,0.05829265,129.56,129.54,3.8599]
[1725256464390,0.05829265,129.56,129.53,0.05020324]
[1725256464593,3.8587,129.59,129.53,0.05020324]
[1725256465387,3.8587,129.59,129.55,3.8597]
[1725256465688,0.05583575,129.58,129.56,0.05269016]
[1725256472492,27.575,129.65,129.56,0.05269016]
[1725256472785,3.857,129.64,129.58,3.8585]
[1725256472989,3.857,129.64,129.56,3.2237]
[1725256473378,3.857,129.64,129.59,3.8584]
[1725256473581,0.05867439,129.61,129.59,3.91305895]
[1725256474084,25.89,129.67,129.59,0.05465895]
[1725256474284,3.8564,129.66,129.57,29.83172952]
[1725256474895,3.8564,129.66,129.61,3.8577]
[1725256475090,0.05429394,129.65,129.62,0.05590272]
[1725256475487,0.05429394,129.65,129.63,3.8572]
[1725256477495,0.05429394,129.65,129.62,0.05590272]
[1725256478489,0.05429394,129.65,129.62,3.91320272]
[1725256479087,0.05429394,129.65,129.63,3.8572]
[1725256480092,0.05429394,129.65,129.62,3.91330272]
[1725256482283,0.05429394,129.65,129.63,3.8572]
[1725256482488,0.05429394,129.65,129.62,0.05590272]
[1725256483092,25.89,129.64,129.62,0.05590272]
[1725256483286,3.8573,129.63,129.62,0.05590272]
[1725256483495,7.63815467,129.63,129.62,0.05590272]
[1725256485692,3.78085467,129.63,129.62,0.05590272]
[1725256485998,29.747,129.64,129.62,0.05590272]
[1725256487494,3.8573,129.63,129.62,0.05590272]
[1725256487690,7.67288641,129.63,129.62,0.05590272]
[1725256487993,3.81558641,129.63,129.62,0.05590272]
[1725256488191,0.05429394,129.65,129.62,0.05590272]
[1725256489595,3.91119394,129.65,129.62,0.05590272]
[1725256489900,25.89,129.64,129.62,0.05590272]
[1725256490101,0.05429394,129.65,129.62,0.05590272]
[1725256490595,3.91119394,129.65,129.62,0.05590272]
[1725256491103,0.05429394,129.65,129.62,0.05590272]
[1725256491398,3.8572,129.64,129.62,0.05590272]
[1725256491598,0.05429394,129.65,129.62,0.05590272]
[1725256492503,25.89,129.63,129.62,0.05590272]
[1725256492706,29.83876938,129.63,129.62,0.05590272]
[1725256494499,29.83876938,129.63,129.54,1.5771]
[1725256494707,25.89,129.61,129.54,4.8171]
[1725256495204,3.8582,129.6,129.55,3.8595]
[1725256495408,0.05709726,129.59,129.56,0.05813878]
[1725256497102,25.94709726,129.59,129.56,0.05813878]
[1725256497298,3.8589,129.58,129.56,0.05813878]
[1725256497506,25.94709726,129.59,129.56,0.05813878]
[1725256497703,25.89,129.57,129.56,0.05813878]
[1725256498003,25.89,129.57,129.51,3.2657]
[1725256498004,25.89,129.57,129.51,1.6438]
[1725256498207,25.89,129.55,129.45,25.89]
[1725256498400,25.89,129.55,129.46,1.6864]
[1725256498899,3.8602,129.54,129.49,3.8613]
[1725256499103,25.89,129.51,129.5,0.05569422]
[1725256499408,3.8615,129.49,129.43,3.863]
[1725256500300,3.8615,129.49,129.45,0.05521085]
[1725256500301,0.05390979,129.47,129.45,0.05521085]
[1725256502008,3.82871751,129.47,129.45,0.05521085]
[1725256502913,29.71871751,129.47,129.45,0.05521085]
[1725256503507,3.8623,129.46,129.45,0.05521085]
[1725256504104,29.7523,129.46,129.45,0.05521085]
[1725256504513,3.82871751,129.47,129.45,0.05521085]
[1725256505605,0.05390979,129.47,129.45,0.05521085]
[1725256506509,3.9514685,129.47,129.45,0.05521085]
[1725256506810,0.05390979,129.47,129.45,0.05521085]
[1725256508814,29.7947287,129.47,129.45,0.05521085]
[1725256509011,25.94390979,129.47,129.45,0.05521085]
[1725256509214,3.8623,129.46,129.45,0.05521085]
[1725256509408,7.70693844,129.46,129.45,0.05521085]
[1725256509613,3.84463844,129.46,129.28,7.7349]
[1725256509916,25.89,129.42,129.33,3.2838]
[1725256510115,25.89,129.42,129.38,3.8647]
[1725256510512,25.98,129.44,129.38,3.8647]
[1725256510713,0.05584628,129.42,129.4,0.05099096]
[1725256512615,3.91954628,129.42,129.4,0.05099096]
[1725256512915,29.89954628,129.42,129.4,0.05099096]
[1725256513314,0.05584628,129.42,129.4,0.05099096]
[1725256516006,26.03584628,129.42,129.4,0.05099096]
[1725256517116,29.89934628,129.42,129.4,0.05099096]
[1725256518018,26.03584628,129.42,129.4,0.05099096]
[1725256518209,0.05584628,129.42,129.4,0.05099096]
[1725256520015,0.05584628,129.42,129.41,3.8638]
[1725256520416,0.05584628,129.42,129.4,0.05099096]
[1725256521224,0.05584628,129.42,129.4,3.91489096]
[1725256521524,0.05584628,129.42,129.4,0.05099096]
[1725256523021,3.91964628,129.42,129.4,0.05099096]
[1725256523224,0.05584628,129.42,129.4,0.05099096]
[1725256523617,3.91954628,129.42,129.4,0.05099096]
[1725256525225,3.8638,129.41,129.4,0.05099096]
[1725256525829,0.05584628,129.42,129.4,0.05099096]
[1725256528024,3.91954628,129.42,129.4,0.05099096]
[1725256528230,0.05584628,129.42,129.4,0.05099096]
[1725256529135,3.79153144,129.46,129.4,0.05099096]
[1725256529330,25.98,129.47,129.4,0.05099096]
[1725256529934,29.89770239,129.47,129.4,0.05099096]
[1725256530131,29.89770239,129.47,129.34,3.8775129]
[1725256530430,25.98,129.44,129.31,1.6873]
[1725256530732,3.8635,129.42,129.36,3.8651]
[1725256530928,29.84746553,129.44,129.31,1.6873]
[1725256531123,29.84746553,129.44,129.31,31.56838558]
[1725256531325,0.05275177,129.39,129.36,26.03186457]
[1725256531529,3.89181108,129.45,129.37,3.3513]
[1725256531729,27.5159,129.5,129.38,3.78476792]
[1725256531930,3.8627,129.45,129.4,3.8641]
[1725256532326,3.8627,129.45,129.38,3.78476792]
[1725256532528,0.05219421,129.43,129.4,0.05169176]
[1725256533338,0.05219421,129.43,129.41,3.8638]
[1725256534440,0.05219421,129.43,129.41,5.5566]
[1725256534941,0.05219421,129.43,129.41,1.6928]
[1725256535343,0.05219421,129.43,129.4,0.05169176]
[1725256536046,25.98,129.42,129.4,0.05169176]
[1725256536344,25.98,129.42,129.32,3.3181]
[1725256536537,3.8647,129.39,129.34,3.8658]
[1725256536837,7.65883565,129.39,129.34,3.8658]
[1725256537235,3.91811321,129.38,129.35,0.05183394]
[1725256538242,0.05331321,129.38,129.35,0.05183394]
[1725256538946,3.865,129.37,129.35,0.05183394]
[1725256540447,3.8653,129.36,129.35,0.05183394]
[1725256540945,0.05331321,129.38,129.35,0.05183394]
[1725256541146,3.8652,129.37,129.35,0.05183394]
[1725256542046,3.8653,129.36,129.35,0.05183394]
[1725256542248,25.98,129.37,129.28,1.6327]
[1725256543150,0.05025496,129.34,129.31,0.05553202]
[1725256544053,0.05025496,129.34,129.31,3.92213202]
[1725256545539,0.05025496,129.34,129.32,3.8664]
[1725256545746,0.05025496,129.34,129.31,0.05553202]
[1725256545939,3.79413565,129.39,129.28,1.6327]
[1725256546141,3.8645,129.39,129.28,1.6327]
[1725256546442,3.78681643,129.39,129.28,27.6127]
[1725256546639,3.8648,129.38,129.34,3.8657]
[1725256546841,3.80537547,129.38,129.28,27.6127]
[1725256547049,0.05501262,129.34,129.32,0.05757566]
[1725256547250,3.8642,129.4,129.32,0.05440607]
[1725256547452,3.8642,129.4,129.28,27.6127]
[1725256547840,3.83592055,129.39,129.28,27.6127]
[1725256548047,3.8642,129.4,129.36,3.8651]
[1725256548352,27.5235,129.42,129.37,0.05770417]
[1725256548353,7.79968647,129.39,129.37,0.05770417]
[1725256548652,3.91350187,129.39,129.37,0.05770417]
[1725256549053,3.90490786,129.39,129.37,0.05770417]
[1725256549654,0.04900187,129.39,129.37,0.05770417]
[1725256550155,3.86857515,129.39,129.37,0.05770417]
[1725256550447,0.04900187,129.39,129.37,0.05770417]
[1725256551245,0.04900187,129.39,129.38,3.8647]
[1725256551752,5.57754327,129.46,129.37,0.05770417]
[1725256551753,3.89374327,129.46,129.37,0.05770417]
[1725256551948,25.98,129.47,129.34,1.5333]
[1725256552158,25.98,129.47,129.35,25.98]
[1725256552452,3.8627,129.45,129.35,27.5712]
[1725256552755,0.05322264,129.41,129.39,0.05777643]
[1725256552950,0.0489452,129.41,129.4,3.8639]
[1725256554356,0.0489452,129.41,129.39,3.92335927]
[1725256554658,0.0489452,129.41,129.39,0.05915927]
[1725256556652,0.0489452,129.41,129.39,3.92355927]
[1725256557058,0.0489452,129.41,129.4,3.8641]
[1725256558352,0.0489452,129.41,129.39,3.92355927]
[1725256560160,0.0489452,129.41,129.4,3.8641]
[1725256560457,29.92149018,129.47,129.35,1.5912]
[1725256560458,3.94149018,129.47,129.35,1.5912]
[1725256560762,3.8619,129.48,129.44,3.8628]
[1725256561055,7.7010684,129.48,129.44,3.8628]
[1725256561456,0.05829047,129.47,129.45,0.04943824]
[1725256562265,29.8423,129.46,129.45,0.04943824]
[1725256562566,25.98,129.46,129.4,3.8639]
[1725256562766,25.98,129.46,129.35,1.5912]
[1725256562958,3.863,129.44,129.39,3.8642]
[1725256563158,3.863,129.44,129.35,1.5912]
[1725256563561,0.05254402,129.41,129.38,0.05691318]
[1725256563967,0.05254402,129.41,129.4,3.8641]
[1725256564263,0.05254402,129.41,129.35,1.5912]
[1725256564264,25.98,129.46,129.35,1.5912]
[1725256564565,25.98,129.46,129.42,3.8634]
[1725256564566,29.8426,129.46,129.42,3.8634]
[1725256564965,25.98,129.46,129.35,1.5912]
[1725256565164,0.05725694,129.42,129.39,0.05547069]
[1725256566069,0.05725694,129.42,129.4,3.8639]
[1725256567565,0.05725694,129.42,129.41,3.8638]
[1725256569069,0.05725694,129.42,129.4,3.8641]
[1725256569770,3.84136694,129.41,129.39,0.05547069]
[1725256570568,0.05725694,129.42,129.39,0.05547069]
[1725256571471,20.83725694,129.42,129.39,0.05547069]
[1725256571870,3.8638,129.41,129.39,0.05547069]
[1725256572071,7.80971232,129.41,129.39,0.05547069]
[1725256572270,3.94591232,129.41,129.39,0.05547069]
[1725256572462,3.8641,129.4,129.39,0.05547069]
[1725256572667,20.83725694,129.42,129.34,1.5333]
[1725256572668,22.42915694,129.42,129.34,1.5333]
[1725256572863,22.3719,129.42,129.34,1.5333]
[1725256573264,3.8645,129.39,129.35,3.8654]
[1725256573461,3.85355378,129.39,129.31,1.6082]
[1725256573664,20.83289485,129.38,129.35,0.05235768]
[1725256573866,28.57579419,129.38,129.35,0.05235768]
[1725256574271,7.79579419,129.38,129.35,0.05235768]
[1725256574573,3.93079419,129.38,129.35,0.05235768]
[1725256574965,7.79549419,129.38,129.35,0.05235768]
[1725256575162,3.93079419,129.38,129.35,0.05235768]
[1725256575472,24.71079419,129.38,129.35,0.05235768]
[1725256575678,3.93079419,129.38,129.35,0.05235768]
[1725256575875,0.05289485,129.38,129.35,0.05235768]
[1725256576574,0.05289485,129.38,129.35,3.91775768]
[1725256576972,0.05289485,129.38,129.35,0.05235768]
[1725256577168,0.05289485,129.38,129.36,3.8652]
[1725256577373,3.95662594,129.37,129.36,3.8652]
[1725256577572,3.95662594,129.37,129.35,0.05235768]
[1725256577771,3.95662594,129.37,129.35,3.91795768]
[1725256578372,0.05289485,129.38,129.35,0.05235768]
[1725256578668,3.87633331,129.38,129.35,0.05235768]
[1725256578870,3.8651,129.37,129.35,0.05235768]
[1725256579073,3.87633331,129.38,129.35,0.05235768]
[1725256579265,3.8652,129.37,129.35,0.05235768]
[1725256579466,3.87633331,129.38,129.35,0.05235768]
[1725256579675,24.67633331,129.38,129.35,0.05235768]
[1725256579863,3.8653,129.36,129.35,0.05235768]
[1725256580072,20.8,129.36,129.26,4.9422]
[1725256580574,3.8657,129.35,129.26,4.9422]
[1725256580770,20.8,129.36,129.26,4.9422]
[1725256580976,20.8,129.34,129.26,4.9422]
[1725256581177,0.05207223,129.31,129.29,0.05856121]
[1725256581872,3.91931107,129.31,129.29,0.05856121]
[1725256582070,0.05207223,129.31,129.29,0.05856121]
[1725256582574,1.571,129.37,129.29,0.05856121]
[1725256582768,29.80343846,129.38,129.26,3.3212]
[1725256583168,3.82343846,129.38,129.27,25.98]
[1725256583366,25.98,129.4,129.27,25.98]
[1725256583572,0.05754335,129.35,129.32,0.058172]
[1725256583778,0.05866556,129.35,129.32,0.05115361]
[1725256584573,0.05866556,129.35,129.34,3.8659]
[1725256584970,3.95284112,129.38,129.3,1.6082]
[1725256585176,3.8642,129.4,129.3,5.4106739]
[1725256585380,25.98,129.42,129.3,1.6082]
[1725256585678,1.5981,129.43,129.31,25.98]
[1725256585877,1.5981,129.43,129.32,1.6946]
[1725256586084,0.05382246,129.39,129.36,0.05814639]
[1725256586576,0.05382246,129.39,129.37,3.8648]
[1725256587677,0.05382246,129.39,129.38,3.8647]
[1725256594479,4.8348,129.47,129.42,3.8635]
[1725256594685,4.8348,129.47,129.37,5.61429275]
[1725256594874,29.8191684,129.48,129.37,1.6612]
[1725256594875,3.8619,129.48,129.37,1.6612]
[1725256595078,3.8619,129.48,129.44,3.8627]
[1725256595286,7.70174908,129.48,129.44,3.8627]
[1725256595484,7.70174908,129.48,129.45,0.04892743]
[1725256595485,0.05504374,129.47,129.45,0.04892743]
[1725256596378,3.91704374,129.47,129.45,0.04892743]
[1725256598780,0.05504374,129.47,129.45,0.04892743]
[1725256600490,3.8623,129.46,129.45,0.04892743]
[1725256600787,3.8635,129.43,129.37,1.6612]
[1725256600995,25.95,129.45,129.37,1.6612]
[1725256601289,3.8636,129.42,129.37,1.6612]
[1725256601490,25.95,129.45,129.37,1.6612]
[1725256601893,0.05063937,129.42,129.4,0.04928528]
[1725256602195,3.90821028,129.41,129.4,0.04928528]
[1725256604798,26.00063937,129.42,129.33,3.2511]
[1725256605095,25.95,129.4,129.33,3.2511]
[1725256605397,3.8651,129.37,129.33,7.1171]
[1725256605588,3.8651,129.37,129.33,3.2511]
[1725256605794,0.0573601,129.36,129.34,0.05512125]
[1725256607002,0.0573601,129.36,129.35,3.8656]